fUSD/lending_fUSD_20240125
["ID","MTS","AMOUNT","RATE_DAILY","PERIOD"]
[312666122,1706141524333,-632.20810468,0.0005205,14]
[312666123,1706141524343,-632.20810468,0.0005205,14]
[312666124,1706141524352,-632.20810468,0.0005205,14]
[312666125,1706141524362,-632.20810468,0.0005205,14]
[312666126,1706141524371,-632.20810468,0.0005205,14]
[312666127,1706141524380,-632.20810468,0.0005205,14]
[312666128,1706141524390,-632.20810468,0.0005205,14]
[312666129,1706141524399,-632.20810468,0.0005205,14]
[312666130,1706141524408,-632.20810468,0.0005205,14]
[312666131,1706141524418,-632.20810468,0.0005205,14]
[312666132,1706141524427,-632.20810468,0.0005205,14]
[312666133,1706141524436,-632.20810468,0.0005205,14]
[312666134,1706141524445,-632.20810468,0.0005205,14]
[312666135,1706141524455,-632.20810468,0.0005205,14]
[312666136,1706141524464,-632.20810468,0.0005205,14]
[312666137,1706141524474,-632.20810468,0.0005205,14]
[312666138,1706141524483,-632.2,0.0005205,14]
[312666139,1706141524492,-793.31227869,0.0005205,14]
[312666140,1706141524502,-793.31227869,0.0005205,14]
[312666141,1706141524511,-793.31227869,0.0005205,14]
[312666142,1706141524522,-793.31227869,0.0005205,14]
[312666143,1706141524531,-793.31227869,0.0005205,14]
[312666144,1706141524540,-793.31227869,0.0005205,14]
[312666145,1706141524552,-793.31227869,0.0005205,14]
[312666146,1706141524562,-793.31227869,0.0005205,14]
[312666147,1706141524571,-793.31227869,0.0005205,14]
[312666148,1706141524581,-793.31227869,0.0005205,14]
[312666149,1706141524590,-793.31227869,0.0005205,14]
[312666150,1706141524599,-793.31227869,0.0005205,14]
[312666151,1706141524608,-793.31227869,0.0005205,14]
[312666152,1706141524618,-793.31227869,0.0005205,14]
[312666153,1706141524627,-793.31227869,0.0005205,14]
[312666154,1706141524635,-793.31227869,0.0005205,14]
[312666155,1706141524645,-793.31227869,0.0005205,14]
[312666156,1706141524654,-793.31227869,0.0005205,14]
[312666157,1706141524662,-793.31227869,0.0005205,14]
[312666158,1706141524671,-793.31,0.0005205,14]
[312666159,1706141524681,-700.0870837,0.0005205,14]
[312666160,1706141524690,-700.0870837,0.0005205,14]
[312666161,1706141524699,-700.0870837,0.0005205,14]
[312666162,1706141524708,-700.0870837,0.0005205,14]
[312666163,1706141524717,-700.0870837,0.0005205,14]
[312666164,1706141524726,-700.0870837,0.0005205,14]
[312666165,1706141524735,-700.0870837,0.0005205,14]
[312666166,1706141524745,-700.0870837,0.0005205,14]
[312666167,1706141524754,-700.0870837,0.0005205,14]
[312666168,1706141524763,-700.0870837,0.0005205,14]
[312666169,1706141524772,-700.0870837,0.0005205,14]
[312666170,1706141524781,-700.0870837,0.0005205,14]
[312666171,1706141524790,-700.0870837,0.0005205,14]
[312666172,1706141524799,-700.0870837,0.0005205,14]
[312666173,1706141524808,-700.0870837,0.0005205,14]
[312666174,1706141524818,-700.0870837,0.0005205,14]
[312666175,1706141524827,-700.0870837,0.0005205,14]
[312666176,1706141524836,-700.0870837,0.0005205,14]
[312666177,1706141524845,-700.0870837,0.0005205,14]
[312666178,1706141524855,-700.08,0.0005205,14]
[312666179,1706141524863,-153.21386404,0.00052052,60]
[312666180,1706141524873,-697.53,0.00052054,31]
[312666181,1706141524882,-632.99,0.00052054,31]
[312666182,1706141524891,-500.0,0.00052054,31]
[312666183,1706141524901,-500.0,0.00052054,31]
[312666184,1706141524910,-500.0,0.00052054,31]
[312666185,1706141524919,-500.0,0.00052054,31]
[312666186,1706141524928,-571.87,0.00052054,31]
[312666187,1706141524938,-500.0,0.00052054,31]
[312666188,1706141524947,-500.0,0.00052054,31]
[312666189,1706141524957,-500.0,0.00052054,31]
[312666190,1706141524966,-500.0,0.00052054,31]
[312666191,1706141524975,-500.0,0.00052054,31]
[312666192,1706141524984,-500.0,0.00052054,31]
[312666193,1706141524993,-500.0,0.00052054,31]
[312666194,1706141525002,-500.0,0.00052054,31]
[312666195,1706141525013,-500.0,0.00052054,31]
[312666196,1706141525023,-188.61890468,0.00052054,31]
[312666197,1706141525033,-500.0,0.00052054,31]
[312666198,1706141525043,-500.0,0.00052054,31]
[312666199,1706141525053,-500.0,0.00052054,31]
[312666200,1706141525064,-642.40357523,0.00052054,31]
[312666201,1706141525074,-500.0,0.00052054,31]
[312666202,1706141525085,-500.0,0.00052054,31]
[312666203,1706141525096,-500.0,0.00052054,31]
[312666204,1706141525107,-500.0,0.00052054,31]
[312666205,1706141525116,-500.0,0.00052054,31]
[312666206,1706141525126,-250.0,0.00052054,31]
[312666207,1706141525136,-500.0,0.00052054,31]
[312666208,1706141525146,-584.90596553,0.00052054,31]
[312666209,1706141525155,-500.0,0.00052054,31]
[312666210,1706141525165,-500.0,0.00052054,31]
[312666211,1706141525174,-500.0,0.00052054,31]
[312666212,1706141525184,-209.74851988,0.00052054,31]
[312666213,1706141525193,-500.0,0.00052054,31]
[312666214,1706141525203,-500.0,0.00052054,31]
[312666215,1706141525213,-500.0,0.00052054,31]
[312666216,1706141525222,-500.0,0.00052054,31]
[312666217,1706141525232,-569.3,0.00052054,31]
[312666218,1706141525242,-547.01,0.00052054,31]
[312666219,1706141525251,-500.0,0.00052054,31]
[312666220,1706141525261,-500.0,0.00052054,31]
[312666221,1706141525271,-500.0,0.00052054,31]
[312666222,1706141525281,-510.64,0.00052054,31]
[312666223,1706141525291,-500.0,0.00052054,31]
[312666224,1706141525304,-1000.0,0.00052054,7]
[312666225,1706141525314,-500.0,0.00052054,31]
[312666226,1706141525324,-500.0,0.00052054,31]
[312666227,1706141525335,-500.0,0.00052054,31]
[312666228,1706141525347,-500.0,0.00052054,31]
[312666229,1706141525358,-500.0,0.00052054,31]
[312666230,1706141525368,-500.0,0.00052054,31]
[312666231,1706141525380,-754.82,0.00052054,31]
[312666232,1706141525390,-500.0,0.00052054,31]
[312666233,1706141525399,-500.0,0.00052054,31]
[312666234,1706141525409,-917.61,0.00052054,31]
[312666235,1706141525419,-500.0,0.00052054,31]
[312666236,1706141525429,-500.0,0.00052054,2]
[312666237,1706141525439,-500.0,0.00052054,31]
[312666238,1706141525448,-500.0,0.00052054,31]
[312666239,1706141525458,-500.0,0.00052054,31]
[312666240,1706141525468,-665.93,0.00052054,31]
[312666241,1706141525478,-500.0,0.00052054,31]
[312666242,1706141525487,-702.69,0.00052054,31]
[312666243,1706141525497,-500.0,0.00052054,31]
[312666244,1706141525506,-500.0,0.00052054,31]
[312666245,1706141525516,-619.19,0.00052054,31]
[312666246,1706141525526,-953.39,0.00052054,31]
[312666247,1706141525536,-500.0,0.00052054,2]
[312666248,1706141525545,-500.0,0.00052054,31]
[312666249,1706141525556,-500.0,0.00052054,31]
[312666250,1706141525566,-500.0,0.00052054,31]
[312666251,1706141525575,-500.0,0.00052054,31]
[312666252,1706141525585,-500.0,0.00052054,31]
[312666253,1706141525595,-577.26303136,0.00052054,31]
[312666254,1706141525606,-500.0,0.00052054,31]
[312666255,1706141525616,-500.0,0.00052054,31]
[312666256,1706141525627,-500.0,0.00052054,31]
[312666257,1706141525636,-500.0,0.00052054,31]
[312666258,1706141525646,-500.0,0.00052054,31]
[312666259,1706141525655,-523.13,0.00052054,31]
[312666260,1706141525664,-500.0,0.00052054,31]
[312666261,1706141525674,-500.0,0.00052054,31]
[312666262,1706141525683,-500.0,0.00052054,31]
[312666263,1706141525693,-500.0,0.00052054,31]
[312666264,1706141525702,-500.0,0.00052054,31]
[312666265,1706141525712,-500.0,0.00052054,31]
[312666266,1706141525722,-539.3,0.00052054,31]
[312666267,1706141525731,-500.0,0.00052054,31]
[312666268,1706141525740,-500.0,0.00052054,31]
[312666269,1706141525749,-500.0,0.00052054,31]
[312666270,1706141525759,-500.0,0.00052054,31]
[312666271,1706141525769,-557.24,0.00052054,31]
[312666272,1706141525778,-500.0,0.00052054,31]
[312666273,1706141525788,-500.0,0.00052054,31]
[312666274,1706141525797,-1000.0,0.00052054,120]
[312666275,1706141525807,-1000.0,0.00052054,120]
[312666276,1706141525816,-1000.0,0.00052054,120]
[312666277,1706141525826,-1000.0,0.00052054,120]
[312666278,1706141525834,-1000.0,0.00052054,120]
[312666279,1706141525845,-1000.0,0.00052054,120]
[312666280,1706141525855,-1000.00980872,0.00052054,120]
[312666281,1706141525864,-500.0,0.00052054,31]
[312666282,1706141525873,-500.0,0.00052054,31]
[312666283,1706141525883,-500.0,0.00052054,31]
[312666284,1706141525892,-500.0,0.00052054,31]
[312666285,1706141525902,-500.0,0.00052054,31]
[312666286,1706141525911,-500.0,0.00052054,31]
[312666287,1706141525921,-500.0,0.00052054,31]
[312666288,1706141525931,-500.0,0.00052054,31]
[312666289,1706141525940,-500.0,0.00052054,31]
[312666290,1706141525950,-500.0,0.00052054,31]
[312666291,1706141525960,-500.0,0.00052054,31]
[312666292,1706141525970,-596.67,0.00052054,31]
[312666293,1706141525980,-500.0,0.00052054,31]
[312666294,1706141525989,-650.62,0.00052054,31]
[312666295,1706141525999,-530.57,0.00052054,31]
[312666296,1706141526009,-590.77,0.00052054,31]
[312666297,1706141526019,-500.0,0.00052054,31]
[312666298,1706141526028,-500.0,0.00052054,31]
[312666299,1706141526038,-500.0,0.00052054,31]
[312666300,1706141526048,-500.0,0.00052054,31]
[312666301,1706141526058,-500.0,0.00052054,31]
[312666302,1706141526067,-537.66,0.00052054,31]
[312666303,1706141526077,-529.72,0.00052054,31]
[312666304,1706141526087,-500.0,0.00052054,31]
[312666305,1706141526098,-500.0,0.00052054,31]
[312666306,1706141526107,-668.66,0.00052054,31]
[312666307,1706141526115,-500.0,0.00052054,31]
[312666308,1706141526125,-500.0,0.00052054,31]
[312666309,1706141526135,-500.0,0.00052054,31]
[312666310,1706141526144,-500.0,0.00052054,31]
[312666311,1706141526153,-992.14,0.00052054,120]
[312666312,1706141526164,-500.0,0.00052054,31]
[312666313,1706141526173,-500.0,0.00052054,31]
[312666314,1706141526183,-502.97,0.00052054,31]
[312666315,1706141526193,-500.0,0.00052054,31]
[312666316,1706141526202,-500.0,0.00052054,31]
[312666317,1706141526211,-500.0,0.00052054,31]
[312666318,1706141526221,-500.0,0.00052054,31]
[312666319,1706141526231,-500.0,0.00052054,31]
[312666320,1706141526240,-500.0,0.00052054,31]
[312666321,1706141526249,-500.0,0.00052054,31]
[312666322,1706141526259,-500.0,0.00052054,31]
[312666323,1706141526269,-500.0,0.00052054,31]
[312666324,1706141526278,-500.0,0.00052054,31]
[312666325,1706141526288,-500.0,0.00052054,31]
[312666326,1706141526301,-626.76,0.00052054,31]
[312666327,1706141526311,-524.2,0.00052054,31]
[312666328,1706141526321,-500.0,0.00052054,31]
[312666329,1706141526332,-500.0,0.00052054,31]
[312666330,1706141526342,-500.0,0.00052054,31]
[312666331,1706141526353,-697.72,0.00052054,2]
[312666332,1706141526363,-500.0,0.00052054,31]
[312666333,1706141526374,-500.0,0.00052054,31]
[312666334,1706141526384,-500.0,0.00052054,31]
[312666335,1706141526597,-502.99,0.00052054,31]
[312666336,1706141526608,-634.6397092,0.00052054,31]
[312666337,1706141526618,-500.0,0.00052054,31]
[312666338,1706141526628,-500.0,0.00052054,31]
[312666339,1706141526638,-500.0,0.00052054,31]
[312666340,1706141526649,-591.26933367,0.00052054,31]
[312666341,1706141526659,-500.0,0.00052054,31]
[312666342,1706141526669,-1084.63,0.00052054,31]
[312666343,1706141526678,-500.0,0.00052054,31]
[312666344,1706141526688,-468.69326717,0.00052054,31]
[312666345,1706141526697,-500.0,0.00052054,31]
[312666346,1706141526707,-500.0,0.00052054,31]
[312666347,1706141526717,-500.0,0.00052054,31]
[312666348,1706141526726,-500.0,0.00052054,31]
[312666349,1706141526736,-500.0,0.00052054,31]
[312666350,1706141526745,-500.0,0.00052054,31]
[312666351,1706141526754,-500.0,0.00052054,31]
[312666352,1706141526764,-500.0,0.00052054,31]
[312666353,1706141526774,-512.35451256,0.00052054,31]
[312666354,1706141526783,-500.0,0.00052054,31]
[312666355,1706141526793,-500.0,0.00052054,31]
[312666356,1706141526802,-563.82,0.00052054,31]
[312666357,1706141526811,-500.0,0.00052054,31]
[312666358,1706141526821,-1246.63,0.00052054,7]
[312666359,1706141526830,-500.0,0.00052054,31]
[312666360,1706141526840,-500.0,0.00052054,31]
[312666361,1706141526850,-669.25,0.00052054,20]
[312666362,1706141526860,-500.0,0.00052054,31]
[312666363,1706141526869,-500.0,0.00052054,31]
[312666364,1706141526878,-500.0,0.00052054,31]
[312666365,1706141526888,-500.0,0.00052054,31]
[312666366,1706141526897,-500.0,0.00052054,31]
[312666367,1706141526907,-500.0,0.00052054,31]
[312666368,1706141526916,-500.0,0.00052054,31]
[312666369,1706141526925,-500.0,0.00052054,31]
[312666370,1706141526936,-500.0,0.00052054,31]
[312666371,1706141526945,-500.0,0.00052054,31]
[312666372,1706141526955,-500.0,0.00052054,31]
[312666373,1706141526964,-500.0,0.00052054,31]
[312666374,1706141526973,-500.0,0.00052054,31]
[312666375,1706141526983,-523.88,0.00052054,31]
[312666376,1706141526992,-500.0,0.00052054,14]
[312666377,1706141527001,-500.0,0.00052054,31]
[312666378,1706141527011,-500.0,0.00052054,31]
[312666379,1706141527020,-500.0,0.00052054,31]
[312666380,1706141527033,-500.0,0.00052054,31]
[312666381,1706141527042,-500.0,0.00052054,31]
[312666382,1706141527051,-1157.14,0.00052054,31]
[312666383,1706141527061,-526.57,0.00052054,31]
[312666384,1706141527071,-1233.91,0.00052054,7]
[312666385,1706141527080,-500.0,0.00052054,31]
[312666386,1706141527090,-500.0,0.00052054,31]
[312666387,1706141527100,-500.0,0.00052054,31]
[312666388,1706141527110,-517.148583,0.00052054,31]
[312666389,1706141527119,-500.0,0.00052054,31]
[312666390,1706141527128,-500.0,0.00052054,31]
[312666391,1706141527137,-500.0,0.00052054,31]
[312666392,1706141527147,-594.98,0.00052054,31]
[312666393,1706141527156,-4118.15,0.00052054,15]
[312666394,1706141527165,-500.0,0.00052054,31]
[312666395,1706141527175,-500.0,0.00052054,31]
[312666396,1706141527184,-500.0,0.00052054,31]
[312666397,1706141527193,-621.48,0.00052054,31]
[312666398,1706141527203,-355.88072716,0.00052054,31]
[312666399,1706141527212,-500.0,0.00052054,31]
[312666400,1706141527221,-1968.51,0.00052054,31]
[312666401,1706141527231,-500.0,0.00052054,31]
[312666402,1706141527240,-500.0,0.00052054,31]
[312666403,1706141527249,-500.0,0.00052054,31]
[312666404,1706141527258,-500.0,0.00052054,31]
[312666405,1706141527268,-500.0,0.00052054,31]
[312666406,1706141527278,-937.73,0.00052054,2]
[312666407,1706141527287,-500.0,0.00052054,31]
[312666408,1706141527301,-557.08617653,0.00052054,31]
[312666409,1706141527310,-4141.1,0.00052054,31]
[312666410,1706141527320,-500.0,0.00052054,31]
[312666411,1706141527330,-500.0,0.00052054,31]
[312666412,1706141527339,-500.0,0.00052054,31]
[312666413,1706141527350,-500.0,0.00052054,31]
[312666414,1706141527359,-500.0,0.00052054,31]
[312666415,1706141527369,-500.0,0.00052054,31]
[312666416,1706141527379,-500.0,0.00052054,31]
[312666417,1706141527388,-500.0,0.00052054,31]
[312666418,1706141527398,-500.0,0.00052054,31]
[312666419,1706141527407,-500.0,0.00052054,31]
[312666420,1706141527416,-728.06,0.00052054,31]
[312666421,1706141527426,-500.0,0.00052054,31]
[312666422,1706141527435,-500.0,0.00052054,31]
[312666423,1706141527444,-500.0,0.00052054,31]
[312666424,1706141527453,-500.0,0.00052054,31]
[312666425,1706141527463,-500.0,0.00052054,31]
[312666426,1706141527472,-973.03,0.00052054,2]
[312666427,1706141527482,-500.0,0.00052054,31]
[312666428,1706141527491,-500.0,0.00052054,31]
[312666429,1706141527501,-500.0,0.00052054,31]
[312666430,1706141527510,-500.0,0.00052054,31]
[312666431,1706141527519,-1697.01,0.00052054,31]
[312666432,1706141527529,-500.0,0.00052054,31]
[312666433,1706141527538,-500.0,0.00052054,31]
[312666434,1706141527548,-556.66,0.00052054,31]
[312666435,1706141527557,-500.0,0.00052054,31]
[312666436,1706141527566,-500.0,0.00052054,31]
[312666437,1706141527576,-797.85,0.00052054,31]
[312666438,1706141527585,-500.0,0.00052054,31]
[312666439,1706141527595,-508.04,0.00052054,31]
[312666440,1706141527604,-500.0,0.00052054,31]
[312666441,1706141527614,-500.0,0.00052054,31]
[312666442,1706141527623,-659.17,0.00052054,31]
[312666443,1706141527633,-681.8,0.00052054,31]
[312666444,1706141527642,-514.92,0.00052054,31]
[312666445,1706141527651,-520.3,0.00052054,31]
[312666446,1706141527660,-500.0,0.00052054,31]
[312666447,1706141527670,-717.84,0.00052054,31]
[312666448,1706141527679,-1187.72,0.00052054,31]
[312666449,1706141527689,-563.62,0.00052054,31]
[312666450,1706141527698,-500.0,0.00052054,31]
[312666451,1706141527707,-500.0,0.00052054,31]
[312666452,1706141527716,-500.0,0.00052054,31]
[312666453,1706141527725,-203.82,0.00052054,31]
[312666454,1706141527735,-500.0,0.00052054,31]
[312666455,1706141527744,-1119.03,0.00052054,2]
[312666456,1706141527753,-551.67,0.00052054,31]
[312666457,1706141527762,-1126.94,0.00052054,31]
[312666458,1706141527772,-1035.65,0.00052054,31]
[312666459,1706141527781,-500.0,0.00052054,31]
[312666460,1706141527790,-738.6,0.00052054,31]
[312666461,1706141527801,-500.0,0.00052054,31]
[312666462,1706141527810,-1041.4,0.00052054,31]
[312666463,1706141527820,-665.87,0.00052054,31]
[312666464,1706141527831,-562.5,0.00052054,120]
[312666465,1706141527840,-511.53,0.00052054,31]
[312666466,1706141527851,-531.79,0.00052054,31]
[312666467,1706141527860,-693.29,0.00052054,31]
[312666468,1706141527869,-569.14,0.00052054,31]
[312666469,1706141527878,-1258.54,0.00052054,31]
[312666470,1706141527887,-500.0,0.00052054,31]
[312666471,1706141527897,-500.0,0.00052054,31]
[312666472,1706141527906,-500.0,0.00052054,31]
[312666473,1706141527916,-500.0,0.00052054,31]
[312666474,1706141527925,-523.57,0.00052054,31]
[312666475,1706141527935,-500.0,0.00052054,31]
[312666476,1706141527944,-3674.77,0.00052054,31]
[312666477,1706141527953,-3124.04,0.00052054,31]
[312666478,1706141527963,-1845.53,0.00052054,31]
[312666479,1706141527972,-698.55,0.00052054,31]
[312666480,1706141527982,-500.0,0.00052054,31]
[312666481,1706141527991,-500.0,0.00052054,31]
[312666482,1706141528000,-3836.74,0.00052054,5]
[312666483,1706141528013,-1206.46,0.00052054,31]
[312666484,1706141528022,-500.0,0.00052054,31]
[312666485,1706141528032,-1295.76,0.00052054,31]
[312666486,1706141528041,-500.0,0.00052054,31]
[312666487,1706141528051,-500.0,0.00052054,31]
[312666488,1706141528060,-500.0,0.00052054,31]
[312666489,1706141528069,-500.0,0.00052054,31]
[312666490,1706141528078,-766.32,0.00052054,31]
[312666491,1706141528087,-500.0,0.00052054,31]
[312666492,1706141528097,-944.79,0.00052054,31]
[312666493,1706141528106,-585.71,0.00052054,31]
[312666494,1706141528115,-5283.49,0.00052054,5]
[312666495,1706141528124,-500.0,0.00052054,31]
[312666496,1706141528134,-366.51953087,0.00052054,31]
[312666497,1706141528143,-500.0,0.00052054,31]
[312666498,1706141528152,-718.1,0.00052054,31]
[312666499,1706141528162,-966.39,0.00052054,31]
[312666500,1706141528171,-1006.46,0.00052054,31]
[312666501,1706141528180,-517.29,0.00052054,31]
[312666502,1706141528189,-8715.7,0.00052054,31]
[312666503,1706141528198,-567.82,0.00052054,31]
[312666504,1706141528207,-500.0,0.00052054,31]
[312666505,1706141528217,-608.48,0.00052054,31]
[312666506,1706141528226,-500.0,0.00052054,31]
[312666507,1706141528235,-500.0,0.00052054,31]
[312666508,1706141528244,-5784.02,0.00052054,31]
[312666509,1706141528253,-500.0,0.00052054,31]
[312666510,1706141528262,-672.35,0.00052054,31]
[312666511,1706141528272,-719.02,0.00052054,31]
[312666512,1706141528281,-571.27,0.00052054,31]
[312666513,1706141528291,-660.52,0.00052054,31]
[312666514,1706141528301,-500.0,0.00052054,31]
[312666515,1706141528310,-681.13,0.00052054,31]
[312666516,1706141528320,-500.0,0.00052054,31]
[312666517,1706141528330,-500.0,0.00052054,31]
[312666518,1706141528339,-500.0,0.00052054,31]
[312666519,1706141528349,-500.0,0.00052054,31]
[312666520,1706141528359,-687.75,0.00052054,31]
[312666521,1706141528368,-742.38,0.00052054,31]
[312666522,1706141528378,-2393.75,0.00052054,31]
[312666523,1706141528387,-5066.61,0.00052054,31]
[312666524,1706141528397,-500.0,0.00052054,31]
[312666525,1706141528406,-500.0,0.00052054,31]
[312666526,1706141528415,-328.81440759,0.00052054,31]
[312666527,1706141528424,-572.67,0.00052054,31]
[312666528,1706141528433,-500.0,0.00052054,31]
[312666529,1706141528442,-2453.54,0.00052054,31]
[312666530,1706141528452,-500.0,0.00052054,31]
[312666531,1706141528462,-2701.77,0.00052054,31]
[312666532,1706141528471,-500.0,0.00052054,31]
[312666533,1706141528481,-500.0,0.00052054,31]
[312666534,1706141528490,-580.27,0.00052054,31]
[312666535,1706141528499,-584.5,0.00052054,31]
[312666536,1706141528509,-500.0,0.00052054,31]
[312666537,1706141528523,-500.0,0.00052054,31]
[312666538,1706141528532,-1141.79,0.00052054,31]
[312666539,1706141528542,-1360.18,0.00052054,31]
[312666540,1706141528551,-1000.0,0.00052054,2]
[312666541,1706141528561,-543.89,0.00052054,31]
[312666542,1706141528570,-693.55,0.00052054,31]
[312666543,1706141528579,-500.0,0.00052054,31]
[312666544,1706141528588,-683.16,0.00052054,31]
[312666545,1706141528597,-500.0,0.00052054,31]
[312666546,1706141528605,-500.0,0.00052054,31]
[312666547,1706141528614,-500.0,0.00052054,31]
[312666548,1706141528623,-608.94,0.00052054,31]
[312666549,1706141528632,-835.92,0.00052054,31]
[312666550,1706141528645,-1468.94,0.00052054,31]
[312666551,1706141528654,-578.45,0.00052054,31]
[312666552,1706141528665,-500.0,0.00052054,31]
[312666553,1706141528675,-552.79,0.00052054,31]
[312666554,1706141528684,-2066.55,0.00052054,31]
[312666555,1706141528693,-706.67,0.00052054,31]
[312666556,1706141528702,-500.0,0.00052054,31]
[312666557,1706141528711,-540.87,0.00052054,31]
[312666558,1706141528720,-582.15,0.00052054,31]
[312666559,1706141528730,-395.44354654,0.00052054,31]
[312666560,1706141528739,-639.06,0.00052054,31]
[312666561,1706141528748,-500.0,0.00052054,31]
[312666562,1706141528757,-500.0,0.00052054,31]
[312666563,1706141528766,-740.88,0.00052054,31]
[312666564,1706141528775,-700.44,0.00052054,31]
[312666565,1706141528785,-500.0,0.00052054,31]
[312666566,1706141528793,-500.0,0.00052054,31]
[312666567,1706141528803,-751.1,0.00052054,31]
[312666568,1706141528812,-677.43,0.00052054,31]
[312666569,1706141528821,-537.04,0.00052054,31]
[312666570,1706141528830,-500.0,0.00052054,31]
[312666571,1706141528840,-2280.94,0.00052054,31]
[312666572,1706141528851,-500.0,0.00052054,31]
[312666573,1706141528860,-547.24,0.00052054,31]
[312666574,1706141528869,-500.0,0.00052054,31]
[312666575,1706141528878,-500.0,0.00052054,31]
[312666576,1706141528887,-500.0,0.00052054,31]
[312666577,1706141528896,-1060.9,0.00052054,31]
[312666578,1706141528905,-581.01,0.00052054,31]
[312666579,1706141528914,-500.0,0.00052054,31]
[312666580,1706141528924,-537.1,0.00052054,31]
[312666581,1706141528933,-778.86,0.00052054,31]
[312666582,1706141528943,-857.21,0.00052054,31]
[312666583,1706141528952,-500.0,0.00052054,31]
[312666584,1706141528961,-1735.79,0.00052054,31]
[312666585,1706141528971,-500.0,0.00052054,31]
[312666586,1706141528980,-500.0,0.00052054,31]
[312666587,1706141528989,-608.69,0.00052054,31]
[312666588,1706141528998,-500.0,0.00052054,31]
[312666589,1706141529007,-606.25,0.00052054,31]
[312666590,1706141529016,-500.0,0.00052054,31]
[312666591,1706141529026,-500.0,0.00052054,31]
[312666592,1706141529034,-712.54,0.00052054,31]
[312666593,1706141529043,-645.15,0.00052054,31]
[312666594,1706141529052,-1073.61,0.00052054,31]
[312666595,1706141529061,-660.57,0.00052054,31]
[312666596,1706141529070,-1320.68,0.00052054,31]
[312666597,1706141529079,-992.0,0.00052054,31]
[312666598,1706141529088,-655.7,0.00052054,31]
[312666599,1706141529097,-500.0,0.00052054,31]
[312666600,1706141529106,-4966.08,0.00052054,31]
[312666601,1706141529116,-1315.35,0.00052054,31]
[312666602,1706141529125,-171.54361656,0.00052054,31]
[312666603,1706141529134,-796.46,0.00052054,31]
[312666604,1706141529143,-205.02085126,0.00052054,31]
[312666605,1706141529152,-500.0,0.00052054,31]
[312666606,1706141529161,-500.0,0.00052054,31]
[312666607,1706141529170,-3061.04,0.00052054,31]
[312666608,1706141529178,-564.19,0.00052054,31]
[312666609,1706141529187,-860.59,0.00052054,31]
[312666610,1706141529196,-500.0,0.00052054,31]
[312666611,1706141529206,-553.53,0.00052054,31]
[312666612,1706141529215,-2426.6,0.00052054,31]
[312666613,1706141529224,-547.26,0.00052054,31]
[312666614,1706141529235,-500.0,0.00052054,31]
[312666615,1706141529246,-649.59,0.00052054,31]
[312666616,1706141529255,-1086.36,0.00052054,31]
[312666617,1706141529265,-959.04,0.00052054,31]
[312666618,1706141529275,-500.0,0.00052054,31]
[312666619,1706141529285,-703.22,0.00052054,31]
[312666620,1706141529298,-787.85,0.00052054,31]
[312666621,1706141529308,-500.0,0.00052054,31]